Workbook

Sheet Delta-U-Werte
B1: Fachvereinigung Deutscher Betonfertigteilbau e. V. in Kooperation mit HALFEN GmbH
B2: Ermittlung des Zuschlags ∆U zum Wärmedurchgangskoeffizienten für vorgehängte Fassadenplatten
C3: Dämmung
C5: Dämmstärke | E5: d = | G5: mm
C7: Wandabstand | E7: a = | F7: =IF(Grundwerte!C118=1,120,IF(Grundwerte!C118=2,140,IF(Grundwerte!C118=3,160,IF(Grundwerte!C118=4,180,IF(Grundwerte!C118=5,200,IF(Grundwerte!C118=6,220,IF(Grundwerte!C118=7,240,IF(Grundwerte!C118=8,260,IF(Grundwerte!C118=9,280,300))))))))) -> 180 | G7: mm
C8: (= Dämmstärke plus 40 mm Abstand)
C10: Wärmeleitfähigkeitsgruppe (WLG) | E10: l = | G10: W/mK
C12: Fassadenplatte
C14: Plattendicke | E14: f = | G14: mm
C16: Maximale Plattenlänge | E16: L = | F16: =IF(Grundwerte!F113=1,4,IF(Grundwerte!F113=2,5.5,IF(Grundwerte!F113=3,6.5,IF(Grundwerte!F113=4,7.5,8)))) -> 4 | G16: m
C18: Mittlere Plattenfläche | E18: A = | G18: m²
C20: Zuschlag zum Wärmedurchgangskoeffizienten
B21: DU = | D21: =Grundwerte!I109 -> 0.0077 | F21: W/m²K
A26: Firma | D26: Max Mustermann Musterstraße 1 12345 Musterstadt

Sheet Grundwerte (hidden)
A2: Plattendicke 80 mm (Max. Plattenlänge 4 m) | C2: Wandabstand | D2: Dämmstärke | F2: Wärmeleitgruppe | H2: Durchschnitliche Fläche der Platte
H3: A = 1 m² | I3: A = 2 m² | J3: A = 3 m² | K3: A = 4 m² | L3: A = 5 m² | M3: A = 6 m² | N3: A = 7 m² | O3: A = 8 m² | P3: A = 9 m² | Q3: A = 10 m² | R3: A = 11 m² | S3: A = 12 m² | T3: A = 13 m² | U3: A = 14 m² | V3: A = 15 m² | W3: A = 16 m² | X3: A = 17 m² | Y3: A = 18 m² | Z3: A = 19 m² | AA3: A = 20 m²
C4: WA [mm] | D4: d [mm] | F4: λ [W/mK] | H4: 1 | I4: 2 | J4: 3 | K4: 4 | L4: 5 | M4: 6 | N4: 7 | O4: 8 | P4: 9 | Q4: 10 | R4: 11 | S4: 12 | T4: 13 | U4: 14 | V4: 15 | W4: 16 | X4: 17 | Y4: 18 | Z4: 19 | AA4: 20
B5: 1 | C5: =D5+40 -> 120 | D5: 80 | E5: 1 | F5: 0.035 | G5: 1 | H5: 0.0737 | I5: 0.03685 | J5: 0.02456666667 | K5: 0.018425 | L5: 0.01474 | M5: 0.0134 | N5: 0.01148571429 | O5: 0.01005 | P5: 0.01042222222 | Q5: 0.00938 | R5: 0.008527272727 | S5: 0.00871 | T5: 0.00804 | U5: 0.007465714286 | V5: 0.006968 | W5: 0.0092125 | X5: 0.0001 | Y5: 0.0001 | Z5: 0.0001 | AA5: 0.0001
B6: 1 | C6: =D6+40 -> 140 | D6: 100 | E6: 2 | F6: 0.035 | G6: 1 | H6: 0.06215 | I6: 0.031075 | J6: 0.02071666667 | K6: 0.0155375 | L6: 0.01243 | M6: 0.0113 | N6: 0.009685714286 | O6: 0.008475 | P6: 0.008788888889 | Q6: 0.00791 | R6: 0.007190909091 | S6: 0.007345 | T6: 0.00678 | U6: 0.006295714286 | V6: 0.008286666667 | W6: 0.00776875 | X6: 0.0001 | Y6: 0.0001 | Z6: 0.0001 | AA6: 0.0001
B7: 1 | C7: 160 | D7: 120 | E7: 3 | F7: 0.035 | G7: 1 | H7: 0.05335 | I7: 0.026675 | J7: 0.01778333333 | K7: 0.0133375 | L7: 0.01067 | M7: 0.0097 | N7: 0.008314285714 | O7: 0.007275 | P7: 0.007544444444 | Q7: 0.00679 | R7: 0.006172727273 | S7: 0.008891666667 | T7: 0.008207692308 | U7: 0.007621428571 | V7: 0.007113333333 | W7: 0.00666875 | X7: 0.0001 | Y7: 0.0001 | Z7: 0.0001 | AA7: 0.0001
B8: 1 | C8: 180 | D8: 140 | E8: 4 | F8: 0.035 | G8: 1 | H8: 0.07308 | I8: 0.03654 | J8: 0.02436 | K8: 0.01827 | L8: 0.014616 | M8: 0.01288 | N8: 0.01104 | O8: 0.00966 | P8: 0.00952 | Q8: 0.008568 | R8: 0.007789090909 | S8: 0.0077 | T8: 0.007107692308 | U8: 0.0066 | V8: 0.00616 | W8: 0.005775 | X8: 0.0001 | Y8: 0.0001 | Z8: 0.0001 | AA8: 0.0001
B9: 1 | C9: 200 | D9: 160 | E9: 5 | F9: 0.035 | G9: 1 | H9: 0.06525 | I9: 0.032625 | J9: 0.02175 | K9: 0.0163125 | L9: 0.01305 | M9: 0.0115 | N9: 0.009857142857 | O9: 0.008625 | P9: 0.0085 | Q9: 0.00765 | R9: 0.006954545455 | S9: 0.006875 | T9: 0.006346153846 | U9: 0.005892857143 | V9: 0.0055 | W9: 0.00515625 | X9: 0.0001 | Y9: 0.0001 | Z9: 0.0001 | AA9: 0.0001
B10: 1 | C10: 220 | D10: 180 | E10: 6 | F10: 0.035 | G10: 1 | H10: 0.05916 | I10: 0.02958 | J10: 0.01972 | K10: 0.01479 | L10: 0.011832 | M10: 0.01042666667 | N10: 0.008937142857 | O10: 0.00782 | P10: 0.007706666667 | Q10: 0.006936 | R10: 0.006305454545 | S10: 0.006233333333 | T10: 0.005753846154 | U10: 0.005342857143 | V10: 0.004986666667 | W10: 0.004675 | X10: 0.0001 | Y10: 0.0001 | Z10: 0.0001 | AA10: 0.0001
B11: 1 | C11: 240 | D11: 200 | E11: 7 | F11: 0.035 | G11: 1 | H11: 0.05307 | I11: 0.026535 | J11: 0.01769 | K11: 0.0132675 | L11: 0.010614 | M11: 0.009353333333 | N11: 0.008017142857 | O11: 0.007015 | P11: 0.006913333333 | Q11: 0.006222 | R11: 0.005656363636 | S11: 0.005591666667 | T11: 0.005161538462 | U11: 0.004792857143 | V11: 0.004473333333 | W11: 0.00419375 | X11: 0.0001 | Y11: 0.0001 | Z11: 0.0001 | AA11: 0.0001
B12: 1 | C12: 260 | D12: 220 | E12: 8 | F12: 0.035 | G12: 1 | H12: 0.08232 | I12: 0.04116 | J12: 0.02744 | K12: 0.02058 | L12: 0.016464 | M12: 0.01418666667 | N12: 0.01216 | O12: 0.01064 | P12: 0.01008 | Q12: 0.009072 | R12: 0.008247272727 | S12: 0.007933333333 | T12: 0.007323076923 | U12: 0.0068 | V12: 0.006346666667 | W12: 0.00595 | X12: 0.0001 | Y12: 0.0001 | Z12: 0.0001 | AA12: 0.0001
B13: 1 | C13: 280 | D13: 240 | E13: 9 | F13: 0.035 | G13: 1 | H13: 0.07644 | I13: 0.03822 | J13: 0.02548 | K13: 0.01911 | L13: 0.015288 | M13: 0.01317333333 | N13: 0.01129142857 | O13: 0.00988 | P13: 0.00936 | Q13: 0.008424 | R13: 0.007658181818 | S13: 0.007366666667 | T13: 0.0068 | U13: 0.006314285714 | V13: 0.005893333333 | W13: 0.005525 | X13: 0.0001 | Y13: 0.0001 | Z13: 0.0001 | AA13: 0.0001
B14: 1 | C14: 300 | D14: 260 | E14: 10 | F14: 0.035 | G14: 1 | H14: 0.071295 | I14: 0.0356475 | J14: 0.023765 | K14: 0.01782375 | L14: 0.014259 | M14: 0.01228666667 | N14: 0.01053142857 | O14: 0.009215 | P14: 0.00873 | Q14: 0.007857 | R14: 0.007142727273 | S14: 0.006870833333 | T14: 0.006342307692 | U14: 0.005889285714 | V14: 0.005496666667 | W14: 0.005153125 | X14: 0.0001 | Y14: 0.0001 | Z14: 0.0001 | AA14: 0.0001
B15: 1 | C15: =D15+40 -> 120 | D15: 80 | E15: 1 | F15: 0.04 | G15: 2 | H15: 0.0715 | I15: 0.03575 | J15: 0.02383333333 | K15: 0.017875 | L15: 0.0143 | M15: 0.013 | N15: 0.01114285714 | O15: 0.00975 | P15: 0.01011111111 | Q15: 0.0091 | R15: 0.008272727273 | S15: 0.00845 | T15: 0.0078 | U15: 0.007242857143 | V15: 0.00676 | W15: 0.0089375 | X15: 0.0001 | Y15: 0.0001 | Z15: 0.0001 | AA15: 0.0001
B16: 1 | C16: =D16+40 -> 140 | D16: 100 | E16: 2 | F16: 0.04 | G16: 2 | H16: 0.05995 | I16: 0.029975 | J16: 0.01998333333 | K16: 0.0149875 | L16: 0.01199 | M16: 0.0109 | N16: 0.009342857143 | O16: 0.008175 | P16: 0.008477777778 | Q16: 0.00763 | R16: 0.006936363636 | S16: 0.007085 | T16: 0.00654 | U16: 0.006072857143 | V16: 0.007993333333 | W16: 0.00749375 | X16: 0.0001 | Y16: 0.0001 | Z16: 0.0001 | AA16: 0.0001
B17: 1 | C17: 160 | D17: 120 | E17: 3 | F17: 0.04 | G17: 2 | H17: 0.0517 | I17: 0.02585 | J17: 0.01723333333 | K17: 0.012925 | L17: 0.01034 | M17: 0.0094 | N17: 0.008057142857 | O17: 0.00705 | P17: 0.007311111111 | Q17: 0.00658 | R17: 0.005981818182 | S17: 0.008616666667 | T17: 0.007953846154 | U17: 0.007385714286 | V17: 0.006893333333 | W17: 0.0064625 | X17: 0.0001 | Y17: 0.0001 | Z17: 0.0001 | AA17: 0.0001
B18: 1 | C18: 180 | D18: 140 | E18: 4 | F18: 0.04 | G18: 2 | H18: 0.07221 | I18: 0.036105 | J18: 0.02407 | K18: 0.0180525 | L18: 0.014442 | M18: 0.01272666667 | N18: 0.01090857143 | O18: 0.009545 | P18: 0.009406666667 | Q18: 0.008466 | R18: 0.007696363636 | S18: 0.007608333333 | T18: 0.007023076923 | U18: 0.006521428571 | V18: 0.006086666667 | W18: 0.00570625 | X18: 0.0001 | Y18: 0.0001 | Z18: 0.0001 | AA18: 0.0001
B19: 1 | C19: 200 | D19: 160 | E19: 5 | F19: 0.04 | G19: 2 | H19: 0.06438 | I19: 0.03219 | J19: 0.02146 | K19: 0.016095 | L19: 0.012876 | M19: 0.01134666667 | N19: 0.009725714286 | O19: 0.00851 | P19: 0.008386666667 | Q19: 0.007548 | R19: 0.006861818182 | S19: 0.006783333333 | T19: 0.006261538462 | U19: 0.005814285714 | V19: 0.005426666667 | W19: 0.0050875 | X19: 0.0001 | Y19: 0.0001 | Z19: 0.0001 | AA19: 0.0001
B20: 1 | C20: 220 | D20: 180 | E20: 6 | F20: 0.04 | G20: 2 | H20: 0.05829 | I20: 0.029145 | J20: 0.01943 | K20: 0.0145725 | L20: 0.011658 | M20: 0.01027333333 | N20: 0.008805714286 | O20: 0.007705 | P20: 0.007593333333 | Q20: 0.006834 | R20: 0.006212727273 | S20: 0.006141666667 | T20: 0.005669230769 | U20: 0.005264285714 | V20: 0.004913333333 | W20: 0.00460625 | X20: 0.0001 | Y20: 0.0001 | Z20: 0.0001 | AA20: 0.0001
B21: 1 | C21: 240 | D21: 200 | E21: 7 | F21: 0.04 | G21: 2 | H21: 0.0522 | I21: 0.0261 | J21: 0.0174 | K21: 0.01305 | L21: 0.01044 | M21: 0.0092 | N21: 0.007885714286 | O21: 0.0069 | P21: 0.0068 | Q21: 0.00612 | R21: 0.005563636364 | S21: 0.0055 | T21: 0.005076923077 | U21: 0.004714285714 | V21: 0.0044 | W21: 0.004125 | X21: 0.0001 | Y21: 0.0001 | Z21: 0.0001 | AA21: 0.0001
B22: 1 | C22: 260 | D22: 220 | E22: 8 | F22: 0.04 | G22: 2 | H22: 0.08085 | I22: 0.040425 | J22: 0.02695 | K22: 0.0202125 | L22: 0.01617 | M22: 0.01393333333 | N22: 0.01194285714 | O22: 0.01045 | P22: 0.0099 | Q22: 0.00891 | R22: 0.0081 | S22: 0.007791666667 | T22: 0.007192307692 | U22: 0.006678571429 | V22: 0.006233333333 | W22: 0.00584375 | X22: 0.0001 | Y22: 0.0001 | Z22: 0.0001 | AA22: 0.0001
B23: 1 | C23: 280 | D23: 240 | E23: 9 | F23: 0.04 | G23: 2 | H23: 0.07497 | I23: 0.037485 | J23: 0.02499 | K23: 0.0187425 | L23: 0.014994 | M23: 0.01292 | N23: 0.01107428571 | O23: 0.00969 | P23: 0.00918 | Q23: 0.008262 | R23: 0.007510909091 | S23: 0.007225 | T23: 0.006669230769 | U23: 0.006192857143 | V23: 0.00578 | W23: 0.00541875 | X23: 0.0001 | Y23: 0.0001 | Z23: 0.0001 | AA23: 0.0001
B24: 1 | C24: 300 | D24: 260 | E24: 10 | F24: 0.04 | G24: 2 | H24: 0.07056 | I24: 0.03528 | J24: 0.02352 | K24: 0.01764 | L24: 0.014112 | M24: 0.01216 | N24: 0.01042285714 | O24: 0.00912 | P24: 0.00864 | Q24: 0.007776 | R24: 0.007069090909 | S24: 0.0068 | T24: 0.006276923077 | U24: 0.005828571429 | V24: 0.00544 | W24: 0.0051 | X24: 0.0001 | Y24: 0.0001 | Z24: 0.0001 | AA24: 0.0001
A25: Plattendicke 100 mm (Max. Plattenlänge 5,5 m) | B25: 2 | C25: =D25+40 -> 120 | D25: 80 | E25: 1 | F25: 0.035 | G25: 1 | H25: 0.0737 | I25: 0.03685 | J25: 0.02456666667 | K25: 0.018425 | L25: 0.01608 | M25: 0.0134 | N25: 0.0134 | O25: 0.011725 | P25: 0.01042222222 | Q25: 0.010452 | R25: 0.009501818182 | S25: 0.00871 | T25: 0.008452307692 | U25: 0.007848571429 | V25: 0.010184 | W25: 0.0095475 | X25: 0.008985882353 | Y25: 0.01012444444 | Z25: 0.009591578947 | AA25: 0.009112
B26: 2 | C26: =D26+40 -> 140 | D26: 100 | E26: 2 | F26: 0.035 | G26: 1 | H26: 0.06215 | I26: 0.031075 | J26: 0.02071666667 | K26: 0.0155375 | L26: 0.01356 | M26: 0.0113 | N26: 0.0113 | O26: 0.0098875 | P26: 0.008788888889 | Q26: 0.008814 | R26: 0.008012727273 | S26: 0.007345 | T26: 0.007127692308 | U26: 0.009201428571 | V26: 0.008588 | W26: 0.00805125 | X26: 0.007577647059 | Y26: 0.008537777778 | Z26: 0.008088421053 | AA26: 0.007684
B27: 2 | C27: 160 | D27: 120 | E27: 3 | F27: 0.035 | G27: 1 | H27: 0.05335 | I27: 0.026675 | J27: 0.01778333333 | K27: 0.0133375 | L27: 0.01164 | M27: 0.0097 | N27: 0.0097 | O27: 0.0084875 | P27: 0.007544444444 | Q27: 0.007566 | R27: 0.0097 | S27: 0.008891666667 | T27: 0.008506153846 | U27: 0.007898571429 | V27: 0.007372 | W27: 0.00691125 | X27: 0.006504705882 | Y27: 0.007328888889 | Z27: 0.006943157895 | AA27: 0.006596
B28: 2 | C28: 180 | D28: 140 | E28: 4 | F28: 0.035 | G28: 1 | H28: 0.07308 | I28: 0.03654 | J28: 0.02436 | K28: 0.01827 | L28: 0.015456 | M28: 0.01288 | N28: 0.01224 | O28: 0.01071 | P28: 0.00952 | Q28: 0.00924 | R28: 0.0084 | S28: 0.0077 | T28: 0.007366153846 | U28: 0.00684 | V28: 0.006384 | W28: 0.005985 | X28: 0.005632941176 | Y28: 0.006346666667 | Z28: 0.006012631579 | AA28: 0.005712
B29: 2 | C29: 200 | D29: 160 | E29: 5 | F29: 0.035 | G29: 1 | H29: 0.06525 | I29: 0.032625 | J29: 0.02175 | K29: 0.0163125 | L29: 0.0138 | M29: 0.0115 | N29: 0.01092857143 | O29: 0.0095625 | P29: 0.0085 | Q29: 0.00825 | R29: 0.0075 | S29: 0.006875 | T29: 0.006576923077 | U29: 0.006107142857 | V29: 0.0057 | W29: 0.00534375 | X29: 0.005029411765 | Y29: 0.005666666667 | Z29: 0.005368421053 | AA29: 0.0051
B30: 2 | C30: 220 | D30: 180 | E30: 6 | F30: 0.035 | G30: 1 | H30: 0.05916 | I30: 0.02958 | J30: 0.01972 | K30: 0.01479 | L30: 0.012512 | M30: 0.01042666667 | N30: 0.009908571429 | O30: 0.00867 | P30: 0.007706666667 | Q30: 0.00748 | R30: 0.0068 | S30: 0.006233333333 | T30: 0.005963076923 | U30: 0.005537142857 | V30: 0.005168 | W30: 0.004845 | X30: 0.00456 | Y30: 0.005137777778 | Z30: 0.004867368421 | AA30: 0.006664
B31: 2 | C31: 240 | D31: 200 | E31: 7 | F31: 0.035 | G31: 1 | H31: 0.05307 | I31: 0.026535 | J31: 0.01769 | K31: 0.0132675 | L31: 0.011224 | M31: 0.009353333333 | N31: 0.008888571429 | O31: 0.0077775 | P31: 0.006913333333 | Q31: 0.00671 | R31: 0.0061 | S31: 0.005591666667 | T31: 0.005349230769 | U31: 0.004967142857 | V31: 0.004636 | W31: 0.00434625 | X31: 0.004090588235 | Y31: 0.006642222222 | Z31: 0.006292631579 | AA31: 0.005978
B32: 2 | C32: 260 | D32: 220 | E32: 8 | F32: 0.035 | G32: 1 | H32: 0.08232 | I32: 0.04116 | J32: 0.02744 | K32: 0.02058 | L32: 0.017024 | M32: 0.01418666667 | N32: 0.01296 | O32: 0.01134 | P32: 0.01008 | Q32: 0.00952 | R32: 0.008654545455 | S32: 0.007933333333 | T32: 0.007495384615 | U32: 0.00696 | V32: 0.006496 | W32: 0.00609 | X32: 0.005731764706 | Y32: 0.006097777778 | Z32: 0.005776842105 | AA32: 0.005488
B33: 2 | C33: 280 | D33: 240 | E33: 9 | F33: 0.035 | G33: 1 | H33: 0.07644 | I33: 0.03822 | J33: 0.02548 | K33: 0.01911 | L33: 0.015808 | M33: 0.01317333333 | N33: 0.01203428571 | O33: 0.01053 | P33: 0.00936 | Q33: 0.00884 | R33: 0.008036363636 | S33: 0.007366666667 | T33: 0.00696 | U33: 0.006462857143 | V33: 0.006032 | W33: 0.005655 | X33: 0.005322352941 | Y33: 0.005662222222 | Z33: 0.005364210526 | AA33: 0.005096
B34: 2 | C34: 300 | D34: 260 | E34: 10 | F34: 0.035 | G34: 1 | H34: 0.071295 | I34: 0.0356475 | J34: 0.023765 | K34: 0.01782375 | L34: 0.014744 | M34: 0.01228666667 | N34: 0.01122428571 | O34: 0.00982125 | P34: 0.00873 | Q34: 0.008245 | R34: 0.007495454545 | S34: 0.006870833333 | T34: 0.006491538462 | U34: 0.006027857143 | V34: 0.005626 | W34: 0.005274375 | X34: 0.004964117647 | Y34: 0.005281111111 | Z34: 0.005003157895 | AA34: 0.004753
B35: 2 | C35: =D35+40 -> 120 | D35: 80 | E35: 1 | F35: 0.04 | G35: 2 | H35: 0.0715 | I35: 0.03575 | J35: 0.02383333333 | K35: 0.017875 | L35: 0.0156 | M35: 0.013 | N35: 0.013 | O35: 0.011375 | P35: 0.01011111111 | Q35: 0.01014 | R35: 0.009218181818 | S35: 0.00845 | T35: 0.0082 | U35: 0.007614285714 | V35: 0.00988 | W35: 0.0092625 | X35: 0.008717647059 | Y35: 0.009822222222 | Z35: 0.009305263158 | AA35: 0.00884
B36: 2 | C36: =D36+40 -> 140 | D36: 100 | E36: 2 | F36: 0.04 | G36: 2 | H36: 0.05995 | I36: 0.029975 | J36: 0.01998333333 | K36: 0.0149875 | L36: 0.01308 | M36: 0.0109 | N36: 0.0109 | O36: 0.0095375 | P36: 0.008477777778 | Q36: 0.008502 | R36: 0.007729090909 | S36: 0.007085 | T36: 0.006875384615 | U36: 0.008875714286 | V36: 0.008284 | W36: 0.00776625 | X36: 0.007309411765 | Y36: 0.008235555556 | Z36: 0.007802105263 | AA36: 0.007412
B37: 2 | C37: 160 | D37: 120 | E37: 3 | F37: 0.04 | G37: 2 | H37: 0.0517 | I37: 0.02585 | J37: 0.01723333333 | K37: 0.012925 | L37: 0.01128 | M37: 0.0094 | N37: 0.0094 | O37: 0.008225 | P37: 0.007311111111 | Q37: 0.007332 | R37: 0.0094 | S37: 0.008616666667 | T37: 0.008243076923 | U37: 0.007654285714 | V37: 0.007144 | W37: 0.0066975 | X37: 0.006303529412 | Y37: 0.007102222222 | Z37: 0.006728421053 | AA37: 0.006392
B38: 2 | C38: 180 | D38: 140 | E38: 4 | F38: 0.04 | G38: 2 | H38: 0.07221 | I38: 0.036105 | J38: 0.02407 | K38: 0.0180525 | L38: 0.015272 | M38: 0.01272666667 | N38: 0.01209428571 | O38: 0.0105825 | P38: 0.009406666667 | Q38: 0.00913 | R38: 0.0083 | S38: 0.007608333333 | T38: 0.007278461538 | U38: 0.006758571429 | V38: 0.006308 | W38: 0.00591375 | X38: 0.005565882353 | Y38: 0.006271111111 | Z38: 0.005941052632 | AA38: 0.005644
B39: 2 | C39: 200 | D39: 160 | E39: 5 | F39: 0.04 | G39: 2 | H39: 0.06438 | I39: 0.03219 | J39: 0.02146 | K39: 0.016095 | L39: 0.013616 | M39: 0.01134666667 | N39: 0.01078285714 | O39: 0.009435 | P39: 0.008386666667 | Q39: 0.00814 | R39: 0.0074 | S39: 0.006783333333 | T39: 0.006489230769 | U39: 0.006025714286 | V39: 0.005624 | W39: 0.0052725 | X39: 0.004962352941 | Y39: 0.005591111111 | Z39: 0.005296842105 | AA39: 0.005032
B40: 2 | C40: 220 | D40: 180 | E40: 6 | F40: 0.04 | G40: 2 | H40: 0.05829 | I40: 0.029145 | J40: 0.01943 | K40: 0.0145725 | L40: 0.012328 | M40: 0.01027333333 | N40: 0.009762857143 | O40: 0.0085425 | P40: 0.007593333333 | Q40: 0.00737 | R40: 0.0067 | S40: 0.006141666667 | T40: 0.005875384615 | U40: 0.005455714286 | V40: 0.005092 | W40: 0.00477375 | X40: 0.004492941176 | Y40: 0.005062222222 | Z40: 0.004795789474 | AA40: 0.006566
B41: 2 | C41: 240 | D41: 200 | E41: 7 | F41: 0.04 | G41: 2 | H41: 0.0522 | I41: 0.0261 | J41: 0.0174 | K41: 0.01305 | L41: 0.01104 | M41: 0.0092 | N41: 0.008742857143 | O41: 0.00765 | P41: 0.0068 | Q41: 0.0066 | R41: 0.006 | S41: 0.0055 | T41: 0.005261538462 | U41: 0.004885714286 | V41: 0.00456 | W41: 0.004275 | X41: 0.004023529412 | Y41: 0.006533333333 | Z41: 0.006189473684 | AA41: 0.00588
B42: 2 | C42: 260 | D42: 220 | E42: 8 | F42: 0.04 | G42: 2 | H42: 0.08085 | I42: 0.040425 | J42: 0.02695 | K42: 0.0202125 | L42: 0.01672 | M42: 0.01393333333 | N42: 0.01272857143 | O42: 0.0111375 | P42: 0.0099 | Q42: 0.00935 | R42: 0.0085 | S42: 0.007791666667 | T42: 0.007361538462 | U42: 0.006835714286 | V42: 0.00638 | W42: 0.00598125 | X42: 0.005629411765 | Y42: 0.005988888889 | Z42: 0.005673684211 | AA42: 0.00539
B43: 2 | C43: 280 | D43: 240 | E43: 9 | F43: 0.04 | G43: 2 | H43: 0.07497 | I43: 0.037485 | J43: 0.02499 | K43: 0.0187425 | L43: 0.015504 | M43: 0.01292 | N43: 0.01180285714 | O43: 0.0103275 | P43: 0.00918 | Q43: 0.00867 | R43: 0.007881818182 | S43: 0.007225 | T43: 0.006826153846 | U43: 0.006338571429 | V43: 0.005916 | W43: 0.00554625 | X43: 0.00522 | Y43: 0.005553333333 | Z43: 0.005261052632 | AA43: 0.004998
B44: 2 | C44: 300 | D44: 260 | E44: 10 | F44: 0.04 | G44: 2 | H44: 0.07056 | I44: 0.03528 | J44: 0.02352 | K44: 0.01764 | L44: 0.014592 | M44: 0.01216 | N44: 0.01110857143 | O44: 0.00972 | P44: 0.00864 | Q44: 0.00816 | R44: 0.007418181818 | S44: 0.0068 | T44: 0.006424615385 | U44: 0.005965714286 | V44: 0.005568 | W44: 0.00522 | X44: 0.004912941176 | Y44: 0.005226666667 | Z44: 0.004951578947 | AA44: 0.004704
A45: Plattendicke 120 mm (Max. Plattenlänge 6,5 m) | B45: 3 | C45: =D45+40 -> 120 | D45: 80 | E45: 1 | F45: 0.035 | G45: 1 | H45: 0.0737 | I45: 0.03685 | J45: 0.02456666667 | K45: 0.0201 | L45: 0.01608 | M45: 0.01563333333 | N45: 0.0134 | O45: 0.013065 | P45: 0.01161333333 | Q45: 0.010452 | R45: 0.009989090909 | S45: 0.009156666667 | T45: 0.008452307692 | U45: 0.01091142857 | V45: 0.01214933333 | W45: 0.01139 | X45: 0.01072 | Y45: 0.01012444444 | Z45: 0.009591578947 | AA45: 0.009112
B46: 3 | C46: =D46+40 -> 140 | D46: 100 | E46: 2 | F46: 0.035 | G46: 1 | H46: 0.06215 | I46: 0.031075 | J46: 0.02071666667 | K46: 0.01695 | L46: 0.01356 | M46: 0.01318333333 | N46: 0.0113 | O46: 0.0110175 | P46: 0.009793333333 | Q46: 0.008814 | R46: 0.008423636364 | S46: 0.007721666667 | T46: 0.009909230769 | U46: 0.009201428571 | V46: 0.01024533333 | W46: 0.009605 | X46: 0.00904 | Y46: 0.008537777778 | Z46: 0.008088421053 | AA46: 0.007684
B47: 3 | C47: 160 | D47: 120 | E47: 3 | F47: 0.035 | G47: 1 | H47: 0.05335 | I47: 0.026675 | J47: 0.01778333333 | K47: 0.01455 | L47: 0.01164 | M47: 0.01131666667 | N47: 0.0097 | O47: 0.0094575 | P47: 0.008406666667 | Q47: 0.01067 | R47: 0.01005272727 | S47: 0.009215 | T47: 0.008506153846 | U47: 0.007898571429 | V47: 0.008794666667 | W47: 0.008245 | X47: 0.00776 | Y47: 0.007328888889 | Z47: 0.006943157895 | AA47: 0.006596
B48: 3 | C48: 180 | D48: 140 | E48: 4 | F48: 0.035 | G48: 1 | H48: 0.07308 | I48: 0.03654 | J48: 0.02436 | K48: 0.01932 | L48: 0.015456 | M48: 0.01428 | N48: 0.01224 | O48: 0.01155 | P48: 0.01026666667 | Q48: 0.00924 | R48: 0.008705454545 | S48: 0.00798 | T48: 0.007366153846 | U48: 0.00684 | V48: 0.007616 | W48: 0.00714 | X48: 0.00672 | Y48: 0.006346666667 | Z48: 0.006012631579 | AA48: 0.005712
B49: 3 | C49: 200 | D49: 160 | E49: 5 | F49: 0.035 | G49: 1 | H49: 0.06525 | I49: 0.032625 | J49: 0.02175 | K49: 0.01725 | L49: 0.0138 | M49: 0.01275 | N49: 0.01092857143 | O49: 0.0103125 | P49: 0.009166666667 | Q49: 0.00825 | R49: 0.007772727273 | S49: 0.007125 | T49: 0.006576923077 | U49: 0.006107142857 | V49: 0.0068 | W49: 0.006375 | X49: 0.006 | Y49: 0.005666666667 | Z49: 0.005368421053 | AA49: 0.00735
B50: 3 | C50: 220 | D50: 180 | E50: 6 | F50: 0.035 | G50: 1 | H50: 0.05916 | I50: 0.02958 | J50: 0.01972 | K50: 0.01564 | L50: 0.012512 | M50: 0.01156 | N50: 0.009908571429 | O50: 0.00935 | P50: 0.008311111111 | Q50: 0.00748 | R50: 0.007047272727 | S50: 0.00646 | T50: 0.005963076923 | U50: 0.005537142857 | V50: 0.006165333333 | W50: 0.00578 | X50: 0.00544 | Y50: 0.007404444444 | Z50: 0.007014736842 | AA50: 0.006664
B51: 3 | C51: 240 | D51: 200 | E51: 7 | F51: 0.035 | G51: 1 | H51: 0.05307 | I51: 0.026535 | J51: 0.01769 | K51: 0.01403 | L51: 0.011224 | M51: 0.01037 | N51: 0.008888571429 | O51: 0.0083875 | P51: 0.007455555556 | Q51: 0.00671 | R51: 0.006321818182 | S51: 0.005795 | T51: 0.005349230769 | U51: 0.004967142857 | V51: 0.005530666667 | W51: 0.0074725 | X51: 0.007032941176 | Y51: 0.006642222222 | Z51: 0.006292631579 | AA51: 0.005978
B52: 3 | C52: 260 | D52: 220 | E52: 8 | F52: 0.035 | G52: 1 | H52: 0.08232 | I52: 0.04116 | J52: 0.02744 | K52: 0.02128 | L52: 0.017024 | M52: 0.01512 | N52: 0.01296 | O52: 0.0119 | P52: 0.01057777778 | Q52: 0.00952 | R52: 0.008858181818 | S52: 0.00812 | T52: 0.007495384615 | U52: 0.00696 | V52: 0.007317333333 | W52: 0.00686 | X52: 0.006456470588 | Y52: 0.006097777778 | Z52: 0.005776842105 | AA52: 0.005488
B53: 3 | C53: 280 | D53: 240 | E53: 9 | F53: 0.035 | G53: 1 | H53: 0.07644 | I53: 0.03822 | J53: 0.02548 | K53: 0.01976 | L53: 0.015808 | M53: 0.01404 | N53: 0.01203428571 | O53: 0.01105 | P53: 0.009822222222 | Q53: 0.00884 | R53: 0.008225454545 | S53: 0.00754 | T53: 0.00696 | U53: 0.006462857143 | V53: 0.006794666667 | W53: 0.00637 | X53: 0.005995294118 | Y53: 0.005662222222 | Z53: 0.005364210526 | AA53: 0.005096
B54: 3 | C54: 300 | D54: 260 | E54: 10 | F54: 0.035 | G54: 1 | H54: 0.071295 | I54: 0.0356475 | J54: 0.023765 | K54: 0.01843 | L54: 0.014744 | M54: 0.013095 | N54: 0.01122428571 | O54: 0.01030625 | P54: 0.009161111111 | Q54: 0.008245 | R54: 0.007671818182 | S54: 0.0070325 | T54: 0.006491538462 | U54: 0.006027857143 | V54: 0.006337333333 | W54: 0.00594125 | X54: 0.005591764706 | Y54: 0.005281111111 | Z54: 0.005003157895 | AA54: 0.004753
B55: 3 | C55: =D55+40 -> 120 | D55: 80 | E55: 1 | F55: 0.04 | G55: 2 | H55: 0.0715 | I55: 0.03575 | J55: 0.02383333333 | K55: 0.0195 | L55: 0.0156 | M55: 0.01516666667 | N55: 0.013 | O55: 0.012675 | P55: 0.01126666667 | Q55: 0.01014 | R55: 0.009690909091 | S55: 0.008883333333 | T55: 0.0082 | U55: 0.01058571429 | V55: 0.01178666667 | W55: 0.01105 | X55: 0.0104 | Y55: 0.009822222222 | Z55: 0.009305263158 | AA55: 0.00884
B56: 3 | C56: =D56+40 -> 140 | D56: 100 | E56: 2 | F56: 0.04 | G56: 2 | H56: 0.05995 | I56: 0.029975 | J56: 0.01998333333 | K56: 0.01635 | L56: 0.01308 | M56: 0.01271666667 | N56: 0.0109 | O56: 0.0106275 | P56: 0.009446666667 | Q56: 0.008502 | R56: 0.008125454545 | S56: 0.007448333333 | T56: 0.009558461538 | U56: 0.008875714286 | V56: 0.009882666667 | W56: 0.009265 | X56: 0.00872 | Y56: 0.008235555556 | Z56: 0.007802105263 | AA56: 0.007412
B57: 3 | C57: 160 | D57: 120 | E57: 3 | F57: 0.04 | G57: 2 | H57: 0.0517 | I57: 0.02585 | J57: 0.01723333333 | K57: 0.0141 | L57: 0.01128 | M57: 0.01096666667 | N57: 0.0094 | O57: 0.009165 | P57: 0.008146666667 | Q57: 0.01034 | R57: 0.009741818182 | S57: 0.00893 | T57: 0.008243076923 | U57: 0.007654285714 | V57: 0.008522666667 | W57: 0.00799 | X57: 0.00752 | Y57: 0.007102222222 | Z57: 0.006728421053 | AA57: 0.006392
B58: 3 | C58: 180 | D58: 140 | E58: 4 | F58: 0.04 | G58: 2 | H58: 0.07221 | I58: 0.036105 | J58: 0.02407 | K58: 0.01909 | L58: 0.015272 | M58: 0.01411 | N58: 0.01209428571 | O58: 0.0114125 | P58: 0.01014444444 | Q58: 0.00913 | R58: 0.008601818182 | S58: 0.007885 | T58: 0.007278461538 | U58: 0.006758571429 | V58: 0.007525333333 | W58: 0.007055 | X58: 0.00664 | Y58: 0.006271111111 | Z58: 0.005941052632 | AA58: 0.005644
B59: 3 | C59: 200 | D59: 160 | E59: 5 | F59: 0.04 | G59: 2 | H59: 0.06438 | I59: 0.03219 | J59: 0.02146 | K59: 0.01702 | L59: 0.013616 | M59: 0.01258 | N59: 0.01078285714 | O59: 0.010175 | P59: 0.009044444444 | Q59: 0.00814 | R59: 0.007669090909 | S59: 0.00703 | T59: 0.006489230769 | U59: 0.006025714286 | V59: 0.006709333333 | W59: 0.00629 | X59: 0.00592 | Y59: 0.005591111111 | Z59: 0.005296842105 | AA59: 0.007252
B60: 3 | C60: 220 | D60: 180 | E60: 6 | F60: 0.04 | G60: 2 | H60: 0.05829 | I60: 0.029145 | J60: 0.01943 | K60: 0.01541 | L60: 0.012328 | M60: 0.01139 | N60: 0.009762857143 | O60: 0.0092125 | P60: 0.008188888889 | Q60: 0.00737 | R60: 0.006943636364 | S60: 0.006365 | T60: 0.005875384615 | U60: 0.005455714286 | V60: 0.006074666667 | W60: 0.005695 | X60: 0.00536 | Y60: 0.007295555556 | Z60: 0.006911578947 | AA60: 0.006566
B61: 3 | C61: 240 | D61: 200 | E61: 7 | F61: 0.04 | G61: 2 | H61: 0.0522 | I61: 0.0261 | J61: 0.0174 | K61: 0.0138 | L61: 0.01104 | M61: 0.0102 | N61: 0.008742857143 | O61: 0.00825 | P61: 0.007333333333 | Q61: 0.0066 | R61: 0.006218181818 | S61: 0.0057 | T61: 0.005261538462 | U61: 0.004885714286 | V61: 0.00544 | W61: 0.00735 | X61: 0.006917647059 | Y61: 0.006533333333 | Z61: 0.006189473684 | AA61: 0.00588
B62: 3 | C62: 260 | D62: 220 | E62: 8 | F62: 0.04 | G62: 2 | H62: 0.08085 | I62: 0.040425 | J62: 0.02695 | K62: 0.0209 | L62: 0.01672 | M62: 0.01485 | N62: 0.01272857143 | O62: 0.0116875 | P62: 0.01038888889 | Q62: 0.00935 | R62: 0.0087 | S62: 0.007975 | T62: 0.007361538462 | U62: 0.006835714286 | V62: 0.007186666667 | W62: 0.0067375 | X62: 0.006341176471 | Y62: 0.005988888889 | Z62: 0.005673684211 | AA62: 0.00539
B63: 3 | C63: 280 | D63: 240 | E63: 9 | F63: 0.04 | G63: 2 | H63: 0.07497 | I63: 0.037485 | J63: 0.02499 | K63: 0.01938 | L63: 0.015504 | M63: 0.01377 | N63: 0.01180285714 | O63: 0.0108375 | P63: 0.009633333333 | Q63: 0.00867 | R63: 0.008067272727 | S63: 0.007395 | T63: 0.006826153846 | U63: 0.006338571429 | V63: 0.006664 | W63: 0.0062475 | X63: 0.00588 | Y63: 0.005553333333 | Z63: 0.005261052632 | AA63: 0.004998
B64: 3 | C64: 300 | D64: 260 | E64: 10 | F64: 0.04 | G64: 2 | H64: 0.07056 | I64: 0.03528 | J64: 0.02352 | K64: 0.01824 | L64: 0.014592 | M64: 0.01296 | N64: 0.01110857143 | O64: 0.0102 | P64: 0.009066666667 | Q64: 0.00816 | R64: 0.007592727273 | S64: 0.00696 | T64: 0.006424615385 | U64: 0.005965714286 | V64: 0.006272 | W64: 0.00588 | X64: 0.005534117647 | Y64: 0.005226666667 | Z64: 0.004951578947 | AA64: 0.004704
A65: Plattendicke 140 mm (Max. Plattenlänge 7,5 m) | B65: 4 | C65: =D65+40 -> 120 | D65: 80 | E65: 1 | F65: 0.035 | G65: 1 | H65: 0.0737 | I65: 0.03685 | J65: 0.0268 | K65: 0.0201 | L65: 0.01876 | M65: 0.01563333333 | N65: 0.01493142857 | O65: 0.013065 | P65: 0.01161333333 | Q65: 0.010988 | R65: 0.009989090909 | S65: 0.009156666667 | T65: 0.01401846154 | U65: 0.01301714286 | V65: 0.01214933333 | W65: 0.01139 | X65: 0.01072 | Y65: 0.01012444444 | Z65: 0.009591578947 | AA65: 0.011926
B66: 4 | C66: =D66+40 -> 140 | D66: 100 | E66: 2 | F66: 0.035 | G66: 1 | H66: 0.06215 | I66: 0.031075 | J66: 0.0226 | K66: 0.01695 | L66: 0.01582 | M66: 0.01318333333 | N66: 0.01259142857 | O66: 0.0110175 | P66: 0.009793333333 | Q66: 0.009266 | R66: 0.008423636364 | S66: 0.010735 | T66: 0.01182153846 | U66: 0.01097714286 | V66: 0.01024533333 | W66: 0.009605 | X66: 0.00904 | Y66: 0.008537777778 | Z66: 0.008088421053 | AA66: 0.010057
B67: 4 | C67: 160 | D67: 120 | E67: 3 | F67: 0.035 | G67: 1 | H67: 0.05335 | I67: 0.026675 | J67: 0.0194 | K67: 0.01455 | L67: 0.01358 | M67: 0.01131666667 | N67: 0.01080857143 | O67: 0.0094575 | P67: 0.01185555556 | Q67: 0.011058 | R67: 0.01005272727 | S67: 0.009215 | T67: 0.01014769231 | U67: 0.009422857143 | V67: 0.008794666667 | W67: 0.008245 | X67: 0.00776 | Y67: 0.007328888889 | Z67: 0.006943157895 | AA67: 0.008633
B68: 4 | C68: 180 | D68: 140 | E68: 4 | F68: 0.035 | G68: 1 | H68: 0.07308 | I68: 0.03654 | J68: 0.02576 | K68: 0.01932 | L68: 0.017136 | M68: 0.01428 | N68: 0.0132 | O68: 0.01155 | P68: 0.01026666667 | Q68: 0.009576 | R68: 0.008705454545 | S68: 0.00798 | T68: 0.008787692308 | U68: 0.00816 | V68: 0.007616 | W68: 0.00714 | X68: 0.00672 | Y68: 0.006346666667 | Z68: 0.006012631579 | AA68: 0.007476
B69: 4 | C69: 200 | D69: 160 | E69: 5 | F69: 0.035 | G69: 1 | H69: 0.06525 | I69: 0.032625 | J69: 0.023 | K69: 0.01725 | L69: 0.0153 | M69: 0.01275 | N69: 0.01178571429 | O69: 0.0103125 | P69: 0.009166666667 | Q69: 0.00855 | R69: 0.007772727273 | S69: 0.007125 | T69: 0.007846153846 | U69: 0.007285714286 | V69: 0.0068 | W69: 0.006375 | X69: 0.006 | Y69: 0.005666666667 | Z69: 0.007736842105 | AA69: 0.008925
B70: 4 | C70: 220 | D70: 180 | E70: 6 | F70: 0.035 | G70: 1 | H70: 0.05916 | I70: 0.02958 | J70: 0.02085333333 | K70: 0.01564 | L70: 0.013872 | M70: 0.01156 | N70: 0.01068571429 | O70: 0.00935 | P70: 0.008311111111 | Q70: 0.007752 | R70: 0.007047272727 | S70: 0.00646 | T70: 0.007113846154 | U70: 0.006605714286 | V70: 0.006165333333 | W70: 0.00833 | X70: 0.00784 | Y70: 0.007404444444 | Z70: 0.007014736842 | AA70: 0.008092
B71: 4 | C71: 240 | D71: 200 | E71: 7 | F71: 0.035 | G71: 1 | H71: 0.05307 | I71: 0.026535 | J71: 0.01870666667 | K71: 0.01403 | L71: 0.012444 | M71: 0.01037 | N71: 0.009585714286 | O71: 0.0083875 | P71: 0.007455555556 | Q71: 0.006954 | R71: 0.006321818182 | S71: 0.005795 | T71: 0.006381538462 | U71: 0.005925714286 | V71: 0.007970666667 | W71: 0.0074725 | X71: 0.007032941176 | Y71: 0.006642222222 | Z71: 0.006292631579 | AA71: 0.007259
B72: 4 | C72: 260 | D72: 220 | E72: 8 | F72: 0.035 | G72: 1 | H72: 0.08232 | I72: 0.04116 | J72: 0.02837333333 | K72: 0.02128 | L72: 0.018144 | M72: 0.01512 | N72: 0.0136 | O72: 0.0119 | P72: 0.01057777778 | Q72: 0.009744 | R72: 0.008858181818 | S72: 0.00812 | T72: 0.008443076923 | U72: 0.00784 | V72: 0.007317333333 | W72: 0.00686 | X72: 0.006456470588 | Y72: 0.006097777778 | Z72: 0.005776842105 | AA72: 0.006664
B73: 4 | C73: 280 | D73: 240 | E73: 9 | F73: 0.035 | G73: 1 | H73: 0.07644 | I73: 0.03822 | J73: 0.02634666667 | K73: 0.01976 | L73: 0.016848 | M73: 0.01404 | N73: 0.01262857143 | O73: 0.01105 | P73: 0.009822222222 | Q73: 0.009048 | R73: 0.008225454545 | S73: 0.00754 | T73: 0.00784 | U73: 0.00728 | V73: 0.006794666667 | W73: 0.00637 | X73: 0.005995294118 | Y73: 0.005662222222 | Z73: 0.005364210526 | AA73: 0.006188
B74: 4 | C74: 300 | D74: 260 | E74: 10 | F74: 0.035 | G74: 1 | H74: 0.071295 | I74: 0.0356475 | J74: 0.02457333333 | K74: 0.01843 | L74: 0.015714 | M74: 0.013095 | N74: 0.01177857143 | O74: 0.01030625 | P74: 0.009161111111 | Q74: 0.008439 | R74: 0.007671818182 | S74: 0.0070325 | T74: 0.007312307692 | U74: 0.00679 | V74: 0.006337333333 | W74: 0.00594125 | X74: 0.005591764706 | Y74: 0.005281111111 | Z74: 0.005003157895 | AA74: 0.0057715
B75: 4 | C75: =D75+40 -> 120 | D75: 80 | E75: 1 | F75: 0.04 | G75: 2 | H75: 0.0715 | I75: 0.03575 | J75: 0.026 | K75: 0.0195 | L75: 0.0182 | M75: 0.01516666667 | N75: 0.01448571429 | O75: 0.012675 | P75: 0.01126666667 | Q75: 0.01066 | R75: 0.009690909091 | S75: 0.008883333333 | T75: 0.0136 | U75: 0.01262857143 | V75: 0.01178666667 | W75: 0.01105 | X75: 0.0104 | Y75: 0.009822222222 | Z75: 0.009305263158 | AA75: 0.01157
B76: 4 | C76: =D76+40 -> 140 | D76: 100 | E76: 2 | F76: 0.04 | G76: 2 | H76: 0.05995 | I76: 0.029975 | J76: 0.0218 | K76: 0.01635 | L76: 0.01526 | M76: 0.01271666667 | N76: 0.01214571429 | O76: 0.0106275 | P76: 0.009446666667 | Q76: 0.008938 | R76: 0.008125454545 | S76: 0.010355 | T76: 0.01140307692 | U76: 0.01058857143 | V76: 0.009882666667 | W76: 0.009265 | X76: 0.00872 | Y76: 0.008235555556 | Z76: 0.007802105263 | AA76: 0.009701
B77: 4 | C77: 160 | D77: 120 | E77: 3 | F77: 0.04 | G77: 2 | H77: 0.0517 | I77: 0.02585 | J77: 0.0188 | K77: 0.0141 | L77: 0.01316 | M77: 0.01096666667 | N77: 0.01047428571 | O77: 0.009165 | P77: 0.01148888889 | Q77: 0.010716 | R77: 0.009741818182 | S77: 0.00893 | T77: 0.009833846154 | U77: 0.009131428571 | V77: 0.008522666667 | W77: 0.00799 | X77: 0.00752 | Y77: 0.007102222222 | Z77: 0.006728421053 | AA77: 0.008366
B78: 4 | C78: 180 | D78: 140 | E78: 4 | F78: 0.04 | G78: 2 | H78: 0.07221 | I78: 0.036105 | J78: 0.02545333333 | K78: 0.01909 | L78: 0.016932 | M78: 0.01411 | N78: 0.01304285714 | O78: 0.0114125 | P78: 0.01014444444 | Q78: 0.009462 | R78: 0.008601818182 | S78: 0.007885 | T78: 0.008683076923 | U78: 0.008062857143 | V78: 0.007525333333 | W78: 0.007055 | X78: 0.00664 | Y78: 0.006271111111 | Z78: 0.005941052632 | AA78: 0.007387
B79: 4 | C79: 200 | D79: 160 | E79: 5 | F79: 0.04 | G79: 2 | H79: 0.06438 | I79: 0.03219 | J79: 0.02269333333 | K79: 0.01702 | L79: 0.015096 | M79: 0.01258 | N79: 0.01162857143 | O79: 0.010175 | P79: 0.009044444444 | Q79: 0.008436 | R79: 0.007669090909 | S79: 0.00703 | T79: 0.007741538462 | U79: 0.007188571429 | V79: 0.006709333333 | W79: 0.00629 | X79: 0.00592 | Y79: 0.005591111111 | Z79: 0.007633684211 | AA79: 0.008806
B80: 4 | C80: 220 | D80: 180 | E80: 6 | F80: 0.04 | G80: 2 | H80: 0.05829 | I80: 0.029145 | J80: 0.02054666667 | K80: 0.01541 | L80: 0.013668 | M80: 0.01139 | N80: 0.01052857143 | O80: 0.0092125 | P80: 0.008188888889 | Q80: 0.007638 | R80: 0.006943636364 | S80: 0.006365 | T80: 0.007009230769 | U80: 0.006508571429 | V80: 0.006074666667 | W80: 0.0082075 | X80: 0.007724705882 | Y80: 0.007295555556 | Z80: 0.006911578947 | AA80: 0.007973
B81: 4 | C81: 240 | D81: 200 | E81: 7 | F81: 0.04 | G81: 2 | H81: 0.0522 | I81: 0.0261 | J81: 0.0184 | K81: 0.0138 | L81: 0.01224 | M81: 0.0102 | N81: 0.009428571429 | O81: 0.00825 | P81: 0.007333333333 | Q81: 0.00684 | R81: 0.006218181818 | S81: 0.0057 | T81: 0.006276923077 | U81: 0.005828571429 | V81: 0.00784 | W81: 0.00735 | X81: 0.006917647059 | Y81: 0.006533333333 | Z81: 0.006189473684 | AA81: 0.00714
B82: 4 | C82: 260 | D82: 220 | E82: 8 | F82: 0.04 | G82: 2 | H82: 0.08085 | I82: 0.040425 | J82: 0.02786666667 | K82: 0.0209 | L82: 0.01782 | M82: 0.01485 | N82: 0.01335714286 | O82: 0.0116875 | P82: 0.01038888889 | Q82: 0.00957 | R82: 0.0087 | S82: 0.007975 | T82: 0.008292307692 | U82: 0.0077 | V82: 0.007186666667 | W82: 0.0067375 | X82: 0.006341176471 | Y82: 0.005988888889 | Z82: 0.005673684211 | AA82: 0.006545
B83: 4 | C83: 280 | D83: 240 | E83: 9 | F83: 0.04 | G83: 2 | H83: 0.07497 | I83: 0.037485 | J83: 0.02584 | K83: 0.01938 | L83: 0.016524 | M83: 0.01377 | N83: 0.01238571429 | O83: 0.0108375 | P83: 0.009633333333 | Q83: 0.008874 | R83: 0.008067272727 | S83: 0.007395 | T83: 0.007689230769 | U83: 0.00714 | V83: 0.006664 | W83: 0.0062475 | X83: 0.00588 | Y83: 0.005553333333 | Z83: 0.005261052632 | AA83: 0.006069
B84: 4 | C84: 300 | D84: 260 | E84: 10 | F84: 0.04 | G84: 2 | H84: 0.07056 | I84: 0.03528 | J84: 0.02432 | K84: 0.01824 | L84: 0.015552 | M84: 0.01296 | N84: 0.01165714286 | O84: 0.0102 | P84: 0.009066666667 | Q84: 0.008352 | R84: 0.007592727273 | S84: 0.00696 | T84: 0.007236923077 | U84: 0.00672 | V84: 0.006272 | W84: 0.00588 | X84: 0.005534117647 | Y84: 0.005226666667 | Z84: 0.004951578947 | AA84: 0.005712
A85: Plattendicke 160 mm (Max. Plattenlänge 8,0 m) | B85: 5 | C85: =D85+40 -> 120 | D85: 80 | E85: 1 | F85: 0.035 | G85: 1 | H85: 0.0737 | I85: 0.03685 | J85: 0.0268 | K85: 0.0201 | L85: 0.01876 | M85: 0.01742 | N85: 0.01493142857 | O85: 0.013065 | P85: 0.01220888889 | Q85: 0.010988 | R85: 0.009989090909 | S85: 0.01518666667 | T85: 0.01401846154 | U85: 0.01301714286 | V85: 0.01214933333 | W85: 0.01139 | X85: 0.01072 | Y85: 0.01325111111 | Z85: 0.01255368421 | AA85: 0.011926
B86: 5 | C86: =D86+40 -> 140 | D86: 100 | E86: 2 | F86: 0.035 | G86: 1 | H86: 0.06215 | I86: 0.031075 | J86: 0.0226 | K86: 0.01695 | L86: 0.01582 | M86: 0.01469 | N86: 0.01259142857 | O86: 0.0110175 | P86: 0.01029555556 | Q86: 0.009266 | R86: 0.01171090909 | S86: 0.01280666667 | T86: 0.01182153846 | U86: 0.01097714286 | V86: 0.01024533333 | W86: 0.009605 | X86: 0.00904 | Y86: 0.01117444444 | Z86: 0.01058631579 | AA86: 0.010057
B87: 5 | C87: 160 | D87: 120 | E87: 3 | F87: 0.035 | G87: 1 | H87: 0.05335 | I87: 0.026675 | J87: 0.0194 | K87: 0.01455 | L87: 0.01358 | M87: 0.01261 | N87: 0.01080857143 | O87: 0.0094575 | P87: 0.008837777778 | Q87: 0.011058 | R87: 0.01005272727 | S87: 0.01099333333 | T87: 0.01014769231 | U87: 0.009422857143 | V87: 0.008794666667 | W87: 0.008245 | X87: 0.00776 | Y87: 0.009592222222 | Z87: 0.009087368421 | AA87: 0.008633
B88: 5 | C88: 180 | D88: 140 | E88: 4 | F88: 0.035 | G88: 1 | H88: 0.07308 | I88: 0.03654 | J88: 0.02576 | K88: 0.01932 | L88: 0.017136 | M88: 0.0154 | N88: 0.0132 | O88: 0.01155 | P88: 0.01064 | Q88: 0.009576 | R88: 0.008705454545 | S88: 0.00952 | T88: 0.008787692308 | U88: 0.00816 | V88: 0.007616 | W88: 0.00714 | X88: 0.00672 | Y88: 0.008306666667 | Z88: 0.007869473684 | AA88: 0.007476
B89: 5 | C89: 200 | D89: 160 | E89: 5 | F89: 0.035 | G89: 1 | H89: 0.06525 | I89: 0.032625 | J89: 0.023 | K89: 0.01725 | L89: 0.0153 | M89: 0.01375 | N89: 0.01178571429 | O89: 0.0103125 | P89: 0.0095 | Q89: 0.00855 | R89: 0.007772727273 | S89: 0.0085 | T89: 0.007846153846 | U89: 0.007285714286 | V89: 0.0068 | W89: 0.006375 | X89: 0.006 | Y89: 0.007416666667 | Z89: 0.009394736842 | AA89: 0.008925
B90: 5 | C90: 220 | D90: 180 | E90: 6 | F90: 0.035 | G90: 1 | H90: 0.05916 | I90: 0.02958 | J90: 0.02085333333 | K90: 0.01564 | L90: 0.013872 | M90: 0.01246666667 | N90: 0.01068571429 | O90: 0.00935 | P90: 0.008613333333 | Q90: 0.007752 | R90: 0.007047272727 | S90: 0.007706666667 | T90: 0.007113846154 | U90: 0.006605714286 | V90: 0.008885333333 | W90: 0.00833 | X90: 0.00784 | Y90: 0.008991111111 | Z90: 0.008517894737 | AA90: 0.008092
B91: 5 | C91: 240 | D91: 200 | E91: 7 | F91: 0.035 | G91: 1 | H91: 0.05307 | I91: 0.026535 | J91: 0.01870666667 | K91: 0.01403 | L91: 0.012444 | M91: 0.01118333333 | N91: 0.009585714286 | O91: 0.0083875 | P91: 0.007726666667 | Q91: 0.006954 | R91: 0.006321818182 | S91: 0.006913333333 | T91: 0.006381538462 | U91: 0.00854 | V91: 0.007970666667 | W91: 0.0074725 | X91: 0.007032941176 | Y91: 0.008065555556 | Z91: 0.007641052632 | AA91: 0.007259
B92: 5 | C92: 260 | D92: 220 | E92: 8 | F92: 0.035 | G92: 1 | H92: 0.08232 | I92: 0.04116 | J92: 0.02837333333 | K92: 0.02128 | L92: 0.018144 | M92: 0.01586666667 | N92: 0.0136 | O92: 0.0119 | P92: 0.01082666667 | Q92: 0.009744 | R92: 0.008858181818 | S92: 0.009146666667 | T92: 0.008443076923 | U92: 0.00784 | V92: 0.007317333333 | W92: 0.00686 | X92: 0.006456470588 | Y92: 0.007404444444 | Z92: 0.007014736842 | AA92: 0.006664
B93: 5 | C93: 280 | D93: 240 | E93: 9 | F93: 0.035 | G93: 1 | H93: 0.07644 | I93: 0.03822 | J93: 0.02634666667 | K93: 0.01976 | L93: 0.016848 | M93: 0.01473333333 | N93: 0.01262857143 | O93: 0.01105 | P93: 0.01005333333 | Q93: 0.009048 | R93: 0.008225454545 | S93: 0.008493333333 | T93: 0.00784 | U93: 0.00728 | V93: 0.006794666667 | W93: 0.00637 | X93: 0.005995294118 | Y93: 0.006875555556 | Z93: 0.006513684211 | AA93: 0.006188
B94: 5 | C94: 300 | D94: 260 | E94: 10 | F94: 0.035 | G94: 1 | H94: 0.071295 | I94: 0.0356475 | J94: 0.02457333333 | K94: 0.01843 | L94: 0.015714 | M94: 0.01374166667 | N94: 0.01177857143 | O94: 0.01030625 | P94: 0.009376666667 | Q94: 0.008439 | R94: 0.007671818182 | S94: 0.007921666667 | T94: 0.007312307692 | U94: 0.00679 | V94: 0.006337333333 | W94: 0.00594125 | X94: 0.005591764706 | Y94: 0.006412777778 | Z94: 0.006075263158 | AA94: 0.0057715
B95: 5 | C95: =D95+40 -> 120 | D95: 80 | E95: 1 | F95: 0.04 | G95: 2 | H95: 0.0715 | I95: 0.03575 | J95: 0.026 | K95: 0.0195 | L95: 0.0182 | M95: 0.0169 | N95: 0.01448571429 | O95: 0.012675 | P95: 0.01184444444 | Q95: 0.01066 | R95: 0.009690909091 | S95: 0.01473333333 | T95: 0.0136 | U95: 0.01262857143 | V95: 0.01178666667 | W95: 0.01105 | X95: 0.0104 | Y95: 0.01285555556 | Z95: 0.01217894737 | AA95: 0.01157
B96: 5 | C96: =D96+40 -> 140 | D96: 100 | E96: 2 | F96: 0.04 | G96: 2 | H96: 0.05995 | I96: 0.029975 | J96: 0.0218 | K96: 0.01635 | L96: 0.01526 | M96: 0.01417 | N96: 0.01214571429 | O96: 0.0106275 | P96: 0.009931111111 | Q96: 0.008938 | R96: 0.01129636364 | S96: 0.01235333333 | T96: 0.01140307692 | U96: 0.01058857143 | V96: 0.009882666667 | W96: 0.009265 | X96: 0.00872 | Y96: 0.01077888889 | Z96: 0.01021157895 | AA96: 0.009701
B97: 5 | C97: 160 | D97: 120 | E97: 3 | F97: 0.04 | G97: 2 | H97: 0.0517 | I97: 0.02585 | J97: 0.0188 | K97: 0.0141 | L97: 0.01316 | M97: 0.01222 | N97: 0.01047428571 | O97: 0.009165 | P97: 0.008564444444 | Q97: 0.010716 | R97: 0.009741818182 | S97: 0.01065333333 | T97: 0.009833846154 | U97: 0.009131428571 | V97: 0.008522666667 | W97: 0.00799 | X97: 0.00752 | Y97: 0.009295555556 | Z97: 0.008806315789 | AA97: 0.008366
B98: 5 | C98: 180 | D98: 140 | E98: 4 | F98: 0.04 | G98: 2 | H98: 0.07221 | I98: 0.036105 | J98: 0.02545333333 | K98: 0.01909 | L98: 0.016932 | M98: 0.01521666667 | N98: 0.01304285714 | O98: 0.0114125 | P98: 0.01051333333 | Q98: 0.009462 | R98: 0.008601818182 | S98: 0.009406666667 | T98: 0.008683076923 | U98: 0.008062857143 | V98: 0.007525333333 | W98: 0.007055 | X98: 0.00664 | Y98: 0.008207777778 | Z98: 0.007775789474 | AA98: 0.007387
B99: 5 | C99: 200 | D99: 160 | E99: 5 | F99: 0.04 | G99: 2 | H99: 0.06438 | I99: 0.03219 | J99: 0.02269333333 | K99: 0.01702 | L99: 0.015096 | M99: 0.01356666667 | N99: 0.01162857143 | O99: 0.010175 | P99: 0.009373333333 | Q99: 0.008436 | R99: 0.007669090909 | S99: 0.008386666667 | T99: 0.007741538462 | U99: 0.007188571429 | V99: 0.006709333333 | W99: 0.00629 | X99: 0.00592 | Y99: 0.007317777778 | Z99: 0.009269473684 | AA99: 0.008806
B100: 5 | C100: 220 | D100: 180 | E100: 6 | F100: 0.04 | G100: 2 | H100: 0.05829 | I100: 0.029145 | J100: 0.02054666667 | K100: 0.01541 | L100: 0.013668 | M100: 0.01228333333 | N100: 0.01052857143 | O100: 0.0092125 | P100: 0.008486666667 | Q100: 0.007638 | R100: 0.006943636364 | S100: 0.007593333333 | T100: 0.007009230769 | U100: 0.006508571429 | V100: 0.008754666667 | W100: 0.0082075 | X100: 0.007724705882 | Y100: 0.008858888889 | Z100: 0.008392631579 | AA100: 0.007973
B101: 5 | C101: 240 | D101: 200 | E101: 7 | F101: 0.04 | G101: 2 | H101: 0.0522 | I101: 0.0261 | J101: 0.0184 | K101: 0.0138 | L101: 0.01224 | M101: 0.011 | N101: 0.009428571429 | O101: 0.00825 | P101: 0.0076 | Q101: 0.00684 | R101: 0.006218181818 | S101: 0.0068 | T101: 0.006276923077 | U101: 0.0084 | V101: 0.00784 | W101: 0.00735 | X101: 0.006917647059 | Y101: 0.007933333333 | Z101: 0.007515789474 | AA101: 0.00714
B102: 5 | C102: 260 | D102: 220 | E102: 8 | F102: 0.04 | G102: 2 | H102: 0.08085 | I102: 0.040425 | J102: 0.02786666667 | K102: 0.0209 | L102: 0.01782 | M102: 0.01558333333 | N102: 0.01335714286 | O102: 0.0116875 | P102: 0.01063333333 | Q102: 0.00957 | R102: 0.0087 | S102: 0.008983333333 | T102: 0.008292307692 | U102: 0.0077 | V102: 0.007186666667 | W102: 0.0067375 | X102: 0.006341176471 | Y102: 0.007272222222 | Z102: 0.006889473684 | AA102: 0.006545
B103: 5 | C103: 280 | D103: 240 | E103: 9 | F103: 0.04 | G103: 2 | H103: 0.07497 | I103: 0.037485 | J103: 0.02584 | K103: 0.01938 | L103: 0.016524 | M103: 0.01445 | N103: 0.01238571429 | O103: 0.0108375 | P103: 0.00986 | Q103: 0.008874 | R103: 0.008067272727 | S103: 0.00833 | T103: 0.007689230769 | U103: 0.00714 | V103: 0.006664 | W103: 0.0062475 | X103: 0.00588 | Y103: 0.006743333333 | Z103: 0.006388421053 | AA103: 0.006069
B104: 5 | C104: 300 | D104: 260 | E104: 10 | F104: 0.04 | G104: 2 | H104: 0.07056 | I104: 0.03528 | J104: 0.02432 | K104: 0.01824 | L104: 0.015552 | M104: 0.0136 | N104: 0.01165714286 | O104: 0.0102 | P104: 0.00928 | Q104: 0.008352 | R104: 0.007592727273 | S104: 0.00784 | T104: 0.007236923077 | U104: 0.00672 | V104: 0.006272 | W104: 0.00588 | X104: 0.005534117647 | Y104: 0.006346666667 | Z104: 0.006012631579 | AA104: 0.005712
H105: =INDEX($H$5:$AA$104,$I$107-4,1) -> 0.07308 | I105: =INDEX($H$5:$AA$104,$I$107-4,2) -> 0.03654 | J105: =INDEX($H$5:$AA$104,$I$107-4,3) -> 0.02436 | K105: =INDEX($H$5:$AA$104,$I$107-4,4) -> 0.01827 | L105: =INDEX($H$5:$AA$104,$I$107-4,5) -> 0.014616 | M105: =INDEX($H$5:$AA$104,$I$107-4,6) -> 0.01288 | N105: =INDEX($H$5:$AA$104,$I$107-4,7) -> 0.01104 | O105: =INDEX($H$5:$AA$104,$I$107-4,8) -> 0.00966 | P105: =INDEX($H$5:$AA$104,$I$107-4,9) -> 0.00952 | Q105: =INDEX($H$5:$AA$104,$I$107-4,10) -> 0.008568 | R105: =INDEX($H$5:$AA$104,$I$107-4,11) -> 0.007789090909 | S105: =INDEX($H$5:$AA$104,$I$107-4,12) -> 0.0077 | T105: =INDEX($H$5:$AA$104,$I$107-4,13) -> 0.007107692308 | U105: =INDEX($H$5:$AA$104,$I$107-4,14) -> 0.0066 | V105: =INDEX($H$5:$AA$104,$I$107-4,15) -> 0.00616 | W105: =INDEX($H$5:$AA$104,$I$107-4,16) -> 0.005775 | X105: =INDEX($H$5:$AA$104,$I$107-4,17) -> 0.0001 | Y105: =INDEX($H$5:$AA$104,$I$107-4,18) -> 0.0001 | Z105: =INDEX($H$5:$AA$104,$I$107-4,19) -> 0.0001 | AA105: =INDEX($H$5:$AA$104,$I$107-4,20) -> 0.0001
C107: Dämmstärke | D107: WLG | F107: Plattendicke | I107: =_xlfn.AGGREGATE(15,6,ROW(B5:B104)/((B5:B104=F113)*(C118=E5:E104)*(D110=G5:G104)),1) -> 8
B108: 1 | C108: 80 | D108: 0.035 | F108: 80 | I108: =_xlfn.AGGREGATE(15,6,COLUMN(H4:AA4)/(C140<=H4:AA4),1) -> 19
B109: 2 | C109: 100 | D109: 0.04 | F109: 100 | I109: =INDEX(H5:AA104,I107-4,I108-7) -> 0.0077
B110: 3 | C110: 120 | D110: 1 | F110: 120
B111: 4 | C111: 140 | F111: 140
B112: 5 | C112: 160 | F112: 160
B113: 6 | C113: 180 | F113: 1
B114: 7 | C114: 200
B115: 8 | C115: 220
B116: 9 | C116: 240
B117: 10 | C117: 260
C118: 4
C120: 1
C121: 2
C122: 3
C123: 4
C124: 5
C125: 6
C126: 7
C127: 8
C128: 9
C129: 10
C130: 11
C131: 12
C132: 13
C133: 14
C134: 15
C135: 16
C136: 17
C137: 18
C138: 19
C139: 20
C140: 12
